[Event "Titled Tuesday Blitz November 22 Early 2022"]
[White "Odinaev, Timur"]
[Black "Fernandez Siles, Luis"]
[WhiteFideId "4163770"]
[BlackFideId "2209420"]
[WhiteElo "2306"]
[BlackElo "2186"]
[Result "1-0"]
[Round "03"]
[TimeControl "180+1"]
[Date "2022.11.23"]
[WhiteClock "0:01:12"]
[BlackClock "0:00:17"]

1. e4 {[%clk 0:03:00]}  c5 {[%clk 0:02:59]} 2. Nf3 {[%clk 0:02:59]}  Nc6 {[%clk 0:02:59]} 3. d4 {[%clk 0:02:59]}  cxd4 {[%clk 0:03:00]} 4. Nxd4 {[%clk 0:03:00]}  Nf6 {[%clk 0:03:01]} 5. Nc3 {[%clk 0:03:00]}  e5 {[%clk 0:03:01]} 6. Ndb5 {[%clk 0:03:01]}  d6 {[%clk 0:03:02]} 7. Bg5 {[%clk 0:03:00]}  a6 {[%clk 0:03:02]} 8. Na3 {[%clk 0:03:01]}  b5 {[%clk 0:03:03]} 9. Nd5 {[%clk 0:03:01]}  Be7 {[%clk 0:03:04]} 10. Bxf6 {[%clk 0:03:02]}  Bxf6 {[%clk 0:03:05]} 11. c3 {[%clk 0:03:03]}  O-O {[%clk 0:03:04]} 12. Nc2 {[%clk 0:03:03]}  Rb8 {[%clk 0:03:04]} 13. a4 {[%clk 0:03:03]}  bxa4 {[%clk 0:03:02]} 14. Ncb4 {[%clk 0:03:03]}  Nxb4 {[%clk 0:03:02]} 15. cxb4 {[%clk 0:03:03]}  Bb7 {[%clk 0:02:57]} 16. Rxa4 {[%clk 0:02:55]}  Bg5 {[%clk 0:02:03]} 17. Bc4 {[%clk 0:02:46]}  Bc6 {[%clk 0:01:49]} 18. Rxa6 {[%clk 0:02:40]}  Bxd5 {[%clk 0:01:49]} 19. Qxd5 {[%clk 0:02:41]}  Rxb4 {[%clk 0:01:48]} 20. O-O {[%clk 0:02:31]}  Kh8 {[%clk 0:01:38]} 21. Rxd6 {[%clk 0:02:27]}  Qe7 {[%clk 0:01:30]} 22. b3 {[%clk 0:02:10]}  f5 {[%clk 0:01:03]} 23. Re6 {[%clk 0:02:01]}  Qa7 {[%clk 0:00:44]} 24. exf5 {[%clk 0:01:55]}  Bf6 {[%clk 0:00:29]} 25. g3 {[%clk 0:01:47]}  h6 {[%clk 0:00:29]} 26. h4 {[%clk 0:01:47]}  Rbb8 {[%clk 0:00:23]} 27. Rd1 {[%clk 0:01:13]}  Rbd8 {[%clk 0:00:19]} 28. Rd6 {[%clk 0:01:13]}  Rxd6 {[%clk 0:00:19]} 29. Qxd6 {[%clk 0:01:13]}  Qa5 {[%clk 0:00:17]} 30. Qxf8+ {[%clk 0:01:12]} 1-0


[Site "https://www.chess.com"]

[Event "Titled Tuesday Blitz November 22 Early 2022"]
[White "Osmak, Yuliia"]
[Black "Dardha, Daniel"]
[WhiteFideId "14101602"]
[BlackFideId "240990"]
[WhiteElo "2328"]
[BlackElo "2528"]
[Result "0-1"]
[Round "03"]
[TimeControl "180+1"]
[Date "2022.11.23"]
[WhiteClock "0:00:11"]
[BlackClock "0:01:03"]

1. d4 {[%clk 0:03:00]}  d5 {[%clk 0:02:58]} 2. c4 {[%clk 0:03:01]}  e6 {[%clk 0:02:58]} 3. Nc3 {[%clk 0:03:00]}  h6 {[%clk 0:02:57]} 4. Nf3 {[%clk 0:02:57]}  Nf6 {[%clk 0:02:57]} 5. g3 {[%clk 0:02:53]}  Nc6 {[%clk 0:02:56]} 6. Bg2 {[%clk 0:02:51]}  Bd6 {[%clk 0:02:56]} 7. O-O {[%clk 0:02:50]}  O-O {[%clk 0:02:56]} 8. Re1 {[%clk 0:02:36]}  dxc4 {[%clk 0:02:56]} 9. e4 {[%clk 0:02:35]}  e5 {[%clk 0:02:56]} 10. d5 {[%clk 0:02:33]}  Nb4 {[%clk 0:02:52]} 11. Bf1 {[%clk 0:02:28]}  Nd3 {[%clk 0:02:50]} 12. Bxd3 {[%clk 0:02:27]}  cxd3 {[%clk 0:02:51]} 13. Qxd3 {[%clk 0:02:27]}  a6 {[%clk 0:02:50]} 14. Nd2 {[%clk 0:02:16]}  Bh3 {[%clk 0:02:36]} 15. Nc4 {[%clk 0:02:13]}  Qd7 {[%clk 0:02:34]} 16. f3 {[%clk 0:02:10]}  Nh7 {[%clk 0:02:23]} 17. Ne3 {[%clk 0:01:40]}  Bc5 {[%clk 0:02:20]} 18. Kh1 {[%clk 0:01:40]}  Ng5 {[%clk 0:02:18]} 19. Nf5 {[%clk 0:01:32]}  Bxf5 {[%clk 0:01:43]} 20. exf5 {[%clk 0:01:31]}  Nh3 {[%clk 0:01:43]} 21. Kg2 {[%clk 0:01:16]}  Ng5 {[%clk 0:01:32]} 22. Bxg5 {[%clk 0:01:13]}  hxg5 {[%clk 0:01:33]} 23. Rxe5 {[%clk 0:01:00]}  Bd6 {[%clk 0:01:31]} 24. Re2 {[%clk 0:00:58]}  b5 {[%clk 0:01:31]} 25. Rae1 {[%clk 0:00:56]}  b4 {[%clk 0:01:32]} 26. Ne4 {[%clk 0:00:55]}  Qxf5 {[%clk 0:01:32]} 27. Qd2 {[%clk 0:00:51]}  Be7 {[%clk 0:01:27]} 28. Nf2 {[%clk 0:00:35]}  Bf6 {[%clk 0:01:27]} 29. Ng4 {[%clk 0:00:34]}  a5 {[%clk 0:01:24]} 30. Nxf6+ {[%clk 0:00:33]}  gxf6 {[%clk 0:01:22]} 31. Re7 {[%clk 0:00:27]}  Rad8 {[%clk 0:01:21]} 32. Rxc7 {[%clk 0:00:26]}  Rxd5 {[%clk 0:01:22]} 33. Qf2 {[%clk 0:00:24]}  Rfd8 {[%clk 0:01:21]} 34. Rc2 {[%clk 0:00:23]}  Kg7 {[%clk 0:01:15]} 35. Rce2 {[%clk 0:00:22]}  Rd3 {[%clk 0:01:15]} 36. Re3 {[%clk 0:00:21]}  Rd2 {[%clk 0:01:16]} 37. R1e2 {[%clk 0:00:20]}  Rd1 {[%clk 0:01:15]} 38. Re1 {[%clk 0:00:20]}  Qb1 {[%clk 0:01:10]} 39. Rxd1 {[%clk 0:00:19]}  Rxd1 {[%clk 0:01:11]} 40. a3 {[%clk 0:00:19]}  Rc1 {[%clk 0:01:02]} 41. axb4 {[%clk 0:00:18]}  axb4 {[%clk 0:01:03]} 42. Re2 {[%clk 0:00:17]}  b3 {[%clk 0:01:04]} 43. Qe3 {[%clk 0:00:16]}  Rc2 {[%clk 0:01:03]} 44. Kf2 {[%clk 0:00:16]}  Qxb2 {[%clk 0:01:02]} 45. f4 {[%clk 0:00:10]}  Rxe2+ {[%clk 0:01:02]} 46. Qxe2 {[%clk 0:00:11]}  Qxe2+ {[%clk 0:01:02]} 47. Kxe2 {[%clk 0:00:11]}  b2 {[%clk 0:01:03]} 0-1


[Site "https://www.chess.com"]

[Event "Titled Tuesday Blitz November 22 Early 2022"]
[White "Ostrovskiy, Aleksandr"]
[Black "Indjic, Aleksandar"]
[WhiteFideId "2034239"]
[BlackFideId "911925"]
[WhiteElo "2340"]
[BlackElo "2592"]
[Result "0-1"]
[Round "03"]
[TimeControl "180+1"]
[Date "2022.11.22"]
[WhiteClock "0:00:08"]
[BlackClock "0:00:12"]

1. d4 {[%clk 0:03:00]}  Nf6 {[%clk 0:02:55]} 2. Bf4 {[%clk 0:03:00]}  d6 {[%clk 0:02:54]} 3. Nc3 {[%clk 0:02:59]}  Nbd7 {[%clk 0:02:54]} 4. Nf3 {[%clk 0:03:00]}  Nh5 {[%clk 0:02:54]} 5. Bd2 {[%clk 0:02:42]}  e5 {[%clk 0:02:53]} 6. e4 {[%clk 0:02:41]}  Nhf6 {[%clk 0:02:50]} 7. Bc4 {[%clk 0:02:37]}  Be7 {[%clk 0:02:48]} 8. O-O {[%clk 0:02:37]}  c6 {[%clk 0:02:45]} 9. a4 {[%clk 0:02:36]}  h6 {[%clk 0:02:43]} 10. Re1 {[%clk 0:02:30]}  Qc7 {[%clk 0:02:43]} 11. Qe2 {[%clk 0:02:09]}  g5 {[%clk 0:02:33]} 12. d5 {[%clk 0:01:54]}  Nf8 {[%clk 0:02:31]} 13. a5 {[%clk 0:01:49]}  Ng6 {[%clk 0:02:26]} 14. h3 {[%clk 0:01:40]}  g4 {[%clk 0:02:24]} 15. hxg4 {[%clk 0:01:41]}  Bxg4 {[%clk 0:02:23]} 16. Qd3 {[%clk 0:01:32]}  Rg8 {[%clk 0:02:13]} 17. Nh2 {[%clk 0:01:26]}  h5 {[%clk 0:01:48]} 18. a6 {[%clk 0:01:21]}  b5 {[%clk 0:01:47]} 19. Bb3 {[%clk 0:01:21]}  b4 {[%clk 0:01:47]} 20. Nd1 {[%clk 0:01:09]}  cxd5 {[%clk 0:01:44]} 21. exd5 {[%clk 0:01:05]}  Bd7 {[%clk 0:01:34]} 22. Ba4 {[%clk 0:00:55]}  Rc8 {[%clk 0:01:26]} 23. Bxd7+ {[%clk 0:00:51]}  Qxd7 {[%clk 0:01:18]} 24. Kf1 {[%clk 0:00:33]}  Rc5 {[%clk 0:01:06]} 25. c4 {[%clk 0:00:22]}  bxc3 {[%clk 0:00:54]} 26. Nxc3 {[%clk 0:00:22]}  Nh4 {[%clk 0:00:54]} 27. Nf3 {[%clk 0:00:09]}  Nxg2 {[%clk 0:00:46]} 28. b4 {[%clk 0:00:09]}  Nxe1 {[%clk 0:00:45]} 29. Rxe1 {[%clk 0:00:06]}  Rc8 {[%clk 0:00:40]} 30. b5 {[%clk 0:00:06]}  Ng4 {[%clk 0:00:31]} 31. Ne4 {[%clk 0:00:05]}  f5 {[%clk 0:00:30]} 32. Ng3 {[%clk 0:00:05]}  e4 {[%clk 0:00:31]} 33. Nxe4 {[%clk 0:00:05]}  fxe4 {[%clk 0:00:32]} 34. Qxe4 {[%clk 0:00:06]}  Qxb5+ {[%clk 0:00:29]} 35. Re2 {[%clk 0:00:05]}  Rc7 {[%clk 0:00:18]} 36. Qe6 {[%clk 0:00:04]}  Nf6 {[%clk 0:00:17]} 37. Bg5 {[%clk 0:00:04]}  Rxg5 {[%clk 0:00:15]} 38. Nxg5 {[%clk 0:00:05]}  Rc1+ {[%clk 0:00:14]} 39. Kg2 {[%clk 0:00:05]}  Qd7 {[%clk 0:00:14]} 40. Qf7+ {[%clk 0:00:05]}  Kd8 {[%clk 0:00:15]} 41. Ne6+ {[%clk 0:00:06]}  Kc8 {[%clk 0:00:15]} 42. Rb2 {[%clk 0:00:06]}  Nxd5 {[%clk 0:00:14]} 43. Qg8+ {[%clk 0:00:06]}  Bd8 {[%clk 0:00:13]} 44. Nxd8 {[%clk 0:00:07]}  Nf4+ {[%clk 0:00:14]} 45. Kf3 {[%clk 0:00:06]}  Qh3+ {[%clk 0:00:12]} 46. Kxf4 {[%clk 0:00:07]}  Qh4+ {[%clk 0:00:12]} 47. Kf3 {[%clk 0:00:07]}  Rc3+ {[%clk 0:00:11]} 48. Ke2 {[%clk 0:00:07]}  Qe4+ {[%clk 0:00:11]} 49. Kd2 {[%clk 0:00:07]}  Qd3+ {[%clk 0:00:11]} 50. Ke1 {[%clk 0:00:08]}  Rc1# {[%clk 0:00:12]} 0-1


[Site "https://www.chess.com"]

[Event "Titled Tuesday Blitz November 22 Early 2022"]
[White "Ozen, Bahadir"]
[Black "Skliarov, Viktor"]
[WhiteFideId "6337058"]
[BlackFideId "14106736"]
[WhiteElo "2503"]
[BlackElo "2284"]
[Result "1-0"]
[Round "03"]
[TimeControl "180+1"]
[Date "2022.11.23"]
[WhiteClock "0:00:58"]
[BlackClock "0:00:44"]

1. g3 {[%clk 0:03:00]}  g6 {[%clk 0:02:59]} 2. Bg2 {[%clk 0:03:01]}  Bg7 {[%clk 0:02:59]} 3. Nf3 {[%clk 0:03:01]}  Nf6 {[%clk 0:03:00]} 4. O-O {[%clk 0:03:01]}  O-O {[%clk 0:03:01]} 5. d3 {[%clk 0:03:02]}  c5 {[%clk 0:03:01]} 6. c3 {[%clk 0:03:00]}  d5 {[%clk 0:02:59]} 7. Bf4 {[%clk 0:03:00]}  Nc6 {[%clk 0:02:58]} 8. Ne5 {[%clk 0:03:01]}  Nxe5 {[%clk 0:02:57]} 9. Bxe5 {[%clk 0:03:01]}  Be6 {[%clk 0:02:53]} 10. Nd2 {[%clk 0:02:57]}  Qd7 {[%clk 0:02:52]} 11. b4 {[%clk 0:02:52]}  cxb4 {[%clk 0:02:41]} 12. cxb4 {[%clk 0:02:53]}  Bh3 {[%clk 0:02:41]} 13. Qb3 {[%clk 0:02:48]}  Bxg2 {[%clk 0:02:30]} 14. Kxg2 {[%clk 0:02:49]}  Ng4 {[%clk 0:02:25]} 15. Bxg7 {[%clk 0:02:46]}  Kxg7 {[%clk 0:02:26]} 16. h3 {[%clk 0:02:39]}  Nf6 {[%clk 0:02:24]} 17. Nf3 {[%clk 0:02:38]}  Rfc8 {[%clk 0:02:20]} 18. Rfc1 {[%clk 0:02:31]}  Rxc1 {[%clk 0:02:14]} 19. Rxc1 {[%clk 0:02:31]}  Rc8 {[%clk 0:02:15]} 20. Rxc8 {[%clk 0:02:26]}  Qxc8 {[%clk 0:02:16]} 21. Qb2 {[%clk 0:02:26]}  h5 {[%clk 0:02:01]} 22. Qe5 {[%clk 0:02:21]}  Qd7 {[%clk 0:01:54]} 23. a3 {[%clk 0:02:15]}  b6 {[%clk 0:01:49]} 24. Nd4 {[%clk 0:02:02]}  a5 {[%clk 0:01:45]} 25. Qb8 {[%clk 0:01:48]}  axb4 {[%clk 0:01:27]} 26. axb4 {[%clk 0:01:49]}  Qd6 {[%clk 0:01:13]} 27. Qxd6 {[%clk 0:01:48]}  exd6 {[%clk 0:01:14]} 28. Nb5 {[%clk 0:01:42]}  Ne8 {[%clk 0:01:13]} 29. Kf3 {[%clk 0:01:41]}  Kf6 {[%clk 0:01:13]} 30. Ke3 {[%clk 0:01:41]}  Ke5 {[%clk 0:01:07]} 31. f4+ {[%clk 0:01:17]}  Ke6 {[%clk 0:01:01]} 32. Kd4 {[%clk 0:01:15]}  f6 {[%clk 0:00:52]} 33. g4 {[%clk 0:01:00]}  h4 {[%clk 0:00:44]} 34. e3 {[%clk 0:00:58]} 1-0


[Site "https://www.chess.com"]

[Event "Titled Tuesday Blitz November 22 Early 2022"]
[White "Padmini, Rout"]
[Black "Martin, Lewis"]
[WhiteFideId "5029295"]
[BlackFideId "410551"]
[WhiteElo "2296"]
[BlackElo "2145"]
[Result "0-1"]
[Round "03"]
[TimeControl "180+1"]
[Date "2022.11.23"]
[WhiteClock "0:00:16"]
[BlackClock "0:00:15"]

1. e4 {[%clk 0:03:00]}  c5 {[%clk 0:02:59]} 2. Nf3 {[%clk 0:02:57]}  d6 {[%clk 0:02:59]} 3. c3 {[%clk 0:02:56]}  Nf6 {[%clk 0:02:56]} 4. Be2 {[%clk 0:02:56]}  Nc6 {[%clk 0:02:53]} 5. d4 {[%clk 0:02:55]}  cxd4 {[%clk 0:02:48]} 6. cxd4 {[%clk 0:02:56]}  g6 {[%clk 0:02:48]} 7. Nc3 {[%clk 0:02:55]}  Bg7 {[%clk 0:02:48]} 8. d5 {[%clk 0:02:44]}  Ne5 {[%clk 0:02:47]} 9. Nxe5 {[%clk 0:02:44]}  dxe5 {[%clk 0:02:48]} 10. Bb5+ {[%clk 0:02:37]}  Bd7 {[%clk 0:02:47]} 11. Qa4 {[%clk 0:02:34]}  O-O {[%clk 0:02:43]} 12. O-O {[%clk 0:02:34]}  a6 {[%clk 0:02:41]} 13. Bxd7 {[%clk 0:02:33]}  Nxd7 {[%clk 0:02:42]} 14. Be3 {[%clk 0:02:32]}  b5 {[%clk 0:02:40]} 15. Qd1 {[%clk 0:02:27]}  Nb6 {[%clk 0:02:30]} 16. b3 {[%clk 0:02:27]}  Rc8 {[%clk 0:02:29]} 17. Rc1 {[%clk 0:02:26]}  f5 {[%clk 0:02:25]} 18. f3 {[%clk 0:02:26]}  Qd6 {[%clk 0:02:19]} 19. Qd2 {[%clk 0:02:22]}  f4 {[%clk 0:02:14]} 20. Bf2 {[%clk 0:02:21]}  Rc7 {[%clk 0:02:10]} 21. Rc2 {[%clk 0:02:15]}  Rfc8 {[%clk 0:02:09]} 22. Rfc1 {[%clk 0:02:15]}  e6 {[%clk 0:02:06]} 23. dxe6 {[%clk 0:02:04]}  Qxe6 {[%clk 0:01:59]} 24. Ne2 {[%clk 0:01:23]}  Rxc2 {[%clk 0:01:53]} 25. Rxc2 {[%clk 0:01:24]}  Bf8 {[%clk 0:01:45]} 26. Kf1 {[%clk 0:01:14]}  Rxc2 {[%clk 0:01:29]} 27. Qxc2 {[%clk 0:01:14]}  Nd7 {[%clk 0:01:21]} 28. Nc3 {[%clk 0:01:00]}  Qc6 {[%clk 0:01:17]} 29. Qd3 {[%clk 0:01:00]}  Kf7 {[%clk 0:01:10]} 30. Qd5+ {[%clk 0:00:57]}  Qxd5 {[%clk 0:01:09]} 31. Nxd5 {[%clk 0:00:58]}  Bd6 {[%clk 0:01:00]} 32. Ke2 {[%clk 0:00:44]}  Nf6 {[%clk 0:00:56]} 33. Kd3 {[%clk 0:00:43]}  Nxd5 {[%clk 0:00:55]} 34. exd5 {[%clk 0:00:44]}  Ke7 {[%clk 0:00:53]} 35. Ke4 {[%clk 0:00:43]}  Kf6 {[%clk 0:00:47]} 36. Be1 {[%clk 0:00:42]}  h5 {[%clk 0:00:36]} 37. h4 {[%clk 0:00:38]}  Ke7 {[%clk 0:00:32]} 38. Bc3 {[%clk 0:00:37]}  Kf6 {[%clk 0:00:31]} 39. Bb2 {[%clk 0:00:33]}  b4 {[%clk 0:00:20]} 40. Ba1 {[%clk 0:00:32]}  Bc7 {[%clk 0:00:18]} 41. Bb2 {[%clk 0:00:29]}  Bd6 {[%clk 0:00:18]} 42. Bc1 {[%clk 0:00:25]}  Bc7 {[%clk 0:00:18]} 43. d6 {[%clk 0:00:22]}  Bxd6 {[%clk 0:00:18]} 44. Kd5 {[%clk 0:00:22]}  Be7 {[%clk 0:00:18]} 45. Bb2 {[%clk 0:00:22]}  Kf5 {[%clk 0:00:17]} 46. Bxe5 {[%clk 0:00:22]}  Bxh4 {[%clk 0:00:17]} 47. Bd6 {[%clk 0:00:22]}  Be1 {[%clk 0:00:17]} 48. Kc4 {[%clk 0:00:21]}  g5 {[%clk 0:00:17]} 49. Kc5 {[%clk 0:00:19]}  g4 {[%clk 0:00:16]} 50. Kb6 {[%clk 0:00:19]}  h4 {[%clk 0:00:15]} 51. fxg4+ {[%clk 0:00:18]}  Kxg4 {[%clk 0:00:15]} 52. Kxa6 {[%clk 0:00:17]}  Bg3 {[%clk 0:00:14]} 53. Kb5 {[%clk 0:00:16]}  f3 {[%clk 0:00:14]} 54. gxf3+ {[%clk 0:00:17]}  Kxf3 {[%clk 0:00:14]} 55. Bxb4 {[%clk 0:00:16]}  h3 {[%clk 0:00:15]} 0-1


[Site "https://www.chess.com"]

[Event "Titled Tuesday Blitz November 22 Early 2022"]
[White "Principe, Gerson"]
[Black "Topalov, Aleksandar"]
[WhiteFideId "3804550"]
[BlackFideId "925659"]
[WhiteElo "2280"]
[BlackElo "2179"]
[Result "1-0"]
[Round "03"]
[TimeControl "180+1"]
[Date "2022.11.23"]
[WhiteClock "0:00:04"]
[BlackClock "0:00:01"]

1. d4 {[%clk 0:02:56]}  Nf6 {[%clk 0:02:59]} 2. Nf3 {[%clk 0:02:57]}  g6 {[%clk 0:02:58]} 3. e3 {[%clk 0:02:57]}  Bg7 {[%clk 0:02:59]} 4. Be2 {[%clk 0:02:57]}  O-O {[%clk 0:02:58]} 5. O-O {[%clk 0:02:58]}  d6 {[%clk 0:02:58]} 6. c4 {[%clk 0:02:59]}  Ne4 {[%clk 0:02:57]} 7. Nc3 {[%clk 0:03:00]}  Nxc3 {[%clk 0:02:57]} 8. bxc3 {[%clk 0:03:00]}  b6 {[%clk 0:02:55]} 9. a4 {[%clk 0:03:00]}  a5 {[%clk 0:02:54]} 10. Ba3 {[%clk 0:03:00]}  Nd7 {[%clk 0:02:51]} 11. Nd2 {[%clk 0:02:51]}  Bb7 {[%clk 0:02:51]} 12. Bf3 {[%clk 0:02:51]}  Qc8 {[%clk 0:02:52]} 13. Rb1 {[%clk 0:02:49]}  e5 {[%clk 0:02:49]} 14. Qb3 {[%clk 0:02:14]}  Bxf3 {[%clk 0:02:46]} 15. Nxf3 {[%clk 0:02:15]}  Re8 {[%clk 0:02:44]} 16. Qb5 {[%clk 0:02:14]}  c6 {[%clk 0:02:13]} 17. Qb3 {[%clk 0:02:05]}  Qc7 {[%clk 0:02:12]} 18. Rfd1 {[%clk 0:01:57]}  c5 {[%clk 0:02:02]} 19. dxc5 {[%clk 0:01:16]}  dxc5 {[%clk 0:01:50]} 20. e4 {[%clk 0:00:50]}  Rab8 {[%clk 0:01:46]} 21. Bc1 {[%clk 0:00:47]}  Nf6 {[%clk 0:01:44]} 22. Qc2 {[%clk 0:00:46]}  Qc6 {[%clk 0:01:42]} 23. Re1 {[%clk 0:00:39]}  h6 {[%clk 0:01:35]} 24. Nd2 {[%clk 0:00:27]}  Bf8 {[%clk 0:01:27]} 25. Nf1 {[%clk 0:00:26]}  Kh7 {[%clk 0:01:24]} 26. f3 {[%clk 0:00:26]}  Bd6 {[%clk 0:01:22]} 27. Ne3 {[%clk 0:00:26]}  Bc7 {[%clk 0:01:21]} 28. Nd5 {[%clk 0:00:26]}  Nxd5 {[%clk 0:01:16]} 29. cxd5 {[%clk 0:00:27]}  Qd7 {[%clk 0:01:13]} 30. c4 {[%clk 0:00:27]}  Bd6 {[%clk 0:01:09]} 31. Bb2 {[%clk 0:00:27]}  Qe7 {[%clk 0:01:04]} 32. Bc3 {[%clk 0:00:26]}  h5 {[%clk 0:00:59]} 33. Rb2 {[%clk 0:00:26]}  Bc7 {[%clk 0:00:57]} 34. Qd3 {[%clk 0:00:25]}  Qd7 {[%clk 0:00:56]} 35. Qd1 {[%clk 0:00:25]}  f6 {[%clk 0:00:52]} 36. Rf2 {[%clk 0:00:25]}  g5 {[%clk 0:00:51]} 37. g3 {[%clk 0:00:25]}  Kg6 {[%clk 0:00:49]} 38. Bd2 {[%clk 0:00:23]}  Rg8 {[%clk 0:00:46]} 39. Kh1 {[%clk 0:00:23]}  Qh3 {[%clk 0:00:40]} 40. f4 {[%clk 0:00:21]}  exf4 {[%clk 0:00:33]} 41. gxf4 {[%clk 0:00:21]}  gxf4 {[%clk 0:00:25]} 42. Bxf4 {[%clk 0:00:20]}  Bxf4 {[%clk 0:00:25]} 43. Rxf4 {[%clk 0:00:21]}  Rbe8 {[%clk 0:00:23]} 44. Rg1+ {[%clk 0:00:17]}  Kf7 {[%clk 0:00:23]} 45. Qf1 {[%clk 0:00:15]}  Rxg1+ {[%clk 0:00:15]} 46. Qxg1 {[%clk 0:00:15]}  Rg8 {[%clk 0:00:12]} 47. Qf2 {[%clk 0:00:14]}  Qc3 {[%clk 0:00:12]} 48. Rf3 {[%clk 0:00:07]}  Qe5 {[%clk 0:00:11]} 49. Rf4 {[%clk 0:00:06]}  Ke7 {[%clk 0:00:09]} 50. Qf3 {[%clk 0:00:04]}  Qd4 {[%clk 0:00:06]} 51. Qf2 {[%clk 0:00:04]}  Qd1+ {[%clk 0:00:06]} 52. Qf1 {[%clk 0:00:04]}  Qd2 {[%clk 0:00:06]} 53. Qf2 {[%clk 0:00:04]}  Qd4 {[%clk 0:00:02]} 54. Qxd4 {[%clk 0:00:04]}  cxd4 {[%clk 0:00:03]} 55. Rf3 {[%clk 0:00:03]}  Kd6 {[%clk 0:00:02]} 56. Rxf6+ {[%clk 0:00:03]}  Ke5 {[%clk 0:00:02]} 57. Re6+ {[%clk 0:00:04]}  Kf4 {[%clk 0:00:02]} 58. Rxb6 {[%clk 0:00:04]}  Kxe4 {[%clk 0:00:01]} 59. Re6+ {[%clk 0:00:04]} 1-0


[Site "https://www.chess.com"]

[Event "Titled Tuesday Blitz November 22 Early 2022"]
[White "Rosenberg, Evan S"]
[Black "Vargas, Mauricio"]
[WhiteFideId "2019299"]
[BlackFideId "4404572"]
[WhiteElo "2346"]
[BlackElo "2025"]
[Result "1-0"]
[Round "03"]
[TimeControl "180+1"]
[Date "2022.11.23"]
[WhiteClock "0:00:59"]
[BlackClock "0:00:04"]

1. d4 {[%clk 0:03:00]}  d5 {[%clk 0:01:23]} 2. Nf3 {[%clk 0:02:59]}  c6 {[%clk 0:01:23]} 3. c3 {[%clk 0:02:59]}  Bg4 {[%clk 0:01:21]} 4. Qc2 {[%clk 0:02:52]}  e6 {[%clk 0:01:19]} 5. Ne5 {[%clk 0:02:51]}  Bh5 {[%clk 0:01:18]} 6. g4 {[%clk 0:02:49]}  Bg6 {[%clk 0:01:17]} 7. Nxg6 {[%clk 0:02:49]}  hxg6 {[%clk 0:01:18]} 8. Bf4 {[%clk 0:02:44]}  Bd6 {[%clk 0:01:17]} 9. Bxd6 {[%clk 0:02:39]}  Qxd6 {[%clk 0:01:18]} 10. h3 {[%clk 0:02:39]}  Nf6 {[%clk 0:01:17]} 11. Bg2 {[%clk 0:02:36]}  Ne4 {[%clk 0:01:15]} 12. Nd2 {[%clk 0:02:35]}  f5 {[%clk 0:01:13]} 13. Nxe4 {[%clk 0:02:29]}  dxe4 {[%clk 0:01:09]} 14. O-O-O {[%clk 0:02:29]}  Nd7 {[%clk 0:01:06]} 15. Kb1 {[%clk 0:02:21]}  O-O-O {[%clk 0:01:06]} 16. c4 {[%clk 0:02:14]}  Kb8 {[%clk 0:00:58]} 17. e3 {[%clk 0:02:09]}  Qc7 {[%clk 0:00:27]} 18. Rd2 {[%clk 0:01:55]}  e5 {[%clk 0:00:23]} 19. d5 {[%clk 0:01:47]}  cxd5 {[%clk 0:00:18]} 20. cxd5 {[%clk 0:01:46]}  Qa5 {[%clk 0:00:16]} 21. Rhd1 {[%clk 0:01:39]}  Rc8 {[%clk 0:00:15]} 22. Qb3 {[%clk 0:01:38]}  Nc5 {[%clk 0:00:12]} 23. Qc3 {[%clk 0:01:11]}  Nd3 {[%clk 0:00:12]} 24. Qxa5 {[%clk 0:01:10]}  Rc5 {[%clk 0:00:07]} 25. Qa3 {[%clk 0:01:02]}  Rhc8 {[%clk 0:00:07]} 26. Rxd3 {[%clk 0:01:01]}  exd3 {[%clk 0:00:06]} 27. Qxd3 {[%clk 0:01:00]}  e4 {[%clk 0:00:06]} 28. Qd4 {[%clk 0:01:00]}  Rc4 {[%clk 0:00:04]} 29. Qxg7 {[%clk 0:00:59]} 1-0


[Site "https://www.chess.com"]

[Event "Titled Tuesday Blitz November 22 Early 2022"]
[White "Spalir, Monika"]
[Black "Lohani, Sujana"]
[WhiteFideId "14609118"]
[BlackFideId "12311987"]
[WhiteElo "2032"]
[BlackElo "1691"]
[Result "1-0"]
[Round "03"]
[TimeControl "180+1"]
[Date "2022.11.23"]
[WhiteClock "0:01:03"]
[BlackClock "0:00:02"]

1. d4 {[%clk 0:03:00]}  g6 {[%clk 0:01:43]} 2. Nf3 {[%clk 0:02:52]}  Bg7 {[%clk 0:01:43]} 3. Bf4 {[%clk 0:02:50]}  d6 {[%clk 0:01:43]} 4. e3 {[%clk 0:02:49]}  c6 {[%clk 0:01:43]} 5. h3 {[%clk 0:02:49]}  Nd7 {[%clk 0:01:41]} 6. Be2 {[%clk 0:02:48]}  Qc7 {[%clk 0:01:42]} 7. O-O {[%clk 0:02:47]}  e5 {[%clk 0:01:42]} 8. Bh2 {[%clk 0:02:46]}  Ne7 {[%clk 0:01:39]} 9. c4 {[%clk 0:02:44]}  O-O {[%clk 0:01:38]} 10. Nc3 {[%clk 0:02:42]}  Re8 {[%clk 0:01:33]} 11. b4 {[%clk 0:02:32]}  exd4 {[%clk 0:01:25]} 12. exd4 {[%clk 0:02:31]}  Nf5 {[%clk 0:01:15]} 13. c5 {[%clk 0:01:51]}  a5 {[%clk 0:01:09]} 14. b5 {[%clk 0:01:42]}  cxb5 {[%clk 0:00:39]} 15. Nxb5 {[%clk 0:01:40]}  Qc6 {[%clk 0:00:36]} 16. Nxd6 {[%clk 0:01:35]}  Nxd6 {[%clk 0:00:32]} 17. Bxd6 {[%clk 0:01:36]}  Nf6 {[%clk 0:00:21]} 18. Rb1 {[%clk 0:01:30]}  Bf5 {[%clk 0:00:17]} 19. Bb5 {[%clk 0:01:24]}  Qc8 {[%clk 0:00:10]} 20. Bxe8 {[%clk 0:01:19]}  Nxe8 {[%clk 0:00:11]} 21. Rb6 {[%clk 0:01:11]}  Qd7 {[%clk 0:00:05]} 22. Re1 {[%clk 0:01:08]}  Nxd6 {[%clk 0:00:04]} 23. Rxd6 {[%clk 0:01:09]}  Qb5 {[%clk 0:00:04]} 24. Ne5 {[%clk 0:01:04]}  Qa4 {[%clk 0:00:02]} 25. Qxa4 {[%clk 0:01:03]} 1-0


[Site "https://www.chess.com"]